[Event "Austrian Championship 2022"]
[Site "Vienna"]
[Date "2022.08.13"]
[Round "2.14"]
[White "Schreiner, Peter"]
[Black "Mayrhuber, Tobias"]
[Result "1-0"]
[ECO "E05"]
[WhiteElo "2416"]
[BlackElo "2010"]
[Annotator "TA"]
[PlyCount "69"]
[EventDate "2022.08.12"]
[EventType "swiss"]
[EventCountry "AUT"]
[SourceTitle "playchess.com"]
[Source "ChessBase"]
[SourceQuality "1"]
[TimeControl "40/5400+30:1800+30"]

{[%evp 20,69,25,41,63,59,59,60,58,59,75,76,85,83,98,86,120,113,146,158,198,183,215,207,280,203,195,195,191,181,216,210,436,193,208,184,202,162,239,229,272,279,316,324,304,314,296,302,375,352,794,750]} 1. Nf3 {[%emt 0:07:45]} d5 {[%emt 0:00:32]} 2. g3 {[%emt 0:00:37]} Nf6 {[%emt 0:00:14]} 3. Bg2 {[%emt 0:00:24]} e6 {[%emt 0:00:45]} 4. O-O {[%emt 0:02:37]} Be7 {[%emt 0:00:13]} 5. c4 {[%emt 0:01:12]} O-O {[%emt 0:00:16]} 6. d4 {[%emt 0:01:20]} dxc4 {[%emt 0:01:34]} 7. Ne5 {[%emt 0:03:46]} Nc6 {[%emt 0:00:20]} 8. Nxc6 {[%emt 0:00:19]} bxc6 {[%emt 0:00:07]} 9. Na3 {[%emt 0:00:05]} Bxa3 {[%emt 0:08:15]} 10. bxa3 {[%emt 0:00:03]} Nd5 {[%emt 0:00:11]} 11. Qa4 {[%emt 0:06:20][%csl LRc4,LRc6][%mdl 1024] White has compensation.} Nc3 {[%emt 0:13:39] E05: Open Catalan: 5 Nf3 Be7.} 12. Qc2 {[%emt 0:01:16]} Nb5 {[%emt 0:00:28]} (12... Qxd4 $2 13. Bb2 $18) 13. e3 {[%emt 0:04:36]} (13. Bxc6 Nxd4 14. Qxc4 Nxc6 15. Qxc6 Qd5 $11) (13. Qxc4 Qxd4 14. Qxc6 Bd7 15. Qxa8 Qxa1 $11) 13... Nd6 $1 {[%emt 0:04:38] White is slightly better.} 14. a4 {[%emt 0:03:00] [#]} Ba6 $146 {[%emt 0:11:39]} ({Predecessor:} 14... Rb8 15. Ba3 Qg5 16. Bc5 Rb6 17. Bxb6 cxb6 18. Bxc6 Ba6 19. Rfc1 Rc8 20. Bg2 h5 {1-0 (51) Erigaisi,A (2544)-Raja,H (2447) El Prat de Llobregat 2019}) 15. Qc3 {[%emt 0:09:37] Black is on the road to losing.} Rb8 {[%emt 0:03:24]} 16. Ba3 {[%emt 0:06:15]} f5 {[%emt 0:07:36]} 17. Bc5 {[%emt 0:13:51]} Bb7 {[%emt 0:05:56]} 18. Rab1 {[%emt 0:05:08]} Rf7 {[%emt 0:05:39]} 19. Qa5 {[%emt 0:04:54] White is more active.} a6 {[%emt 0:06:04]} 20. Rb4 {[%emt 0:03:18]} Qc8 {[%emt 0:02:29]} 21. Rfb1 {[%emt 0:03:42]} Ra8 {[%emt 0:00:25]} 22. f3 {[%emt 0:03:26]} c3 {[%emt 0:05:01]} 23. R4b3 {[%emt 0:02:06]} c2 {[%emt 0:00:30]} 24. Rc1 {[%emt 0:00:30]} Qd8 {[%emt 0:00:30]} 25. Rxc2 {[%emt 0:00:30]} Qg5 $2 {[%emt 0:00:30] [#]} (25... Qe8 {was necessary.} 26. Bf1 Rd8) 26. Qc3 {[%emt 0:00:30]} (26. Rcb2 $142) 26... Rd8 $18 {[%emt 0:00:30]} 27. Rc1 {[%emt 0:00:30]} h5 {[%emt 0:00:30]} 28. Qe1 {[%emt 0:00:30]} h4 {[%emt 0:14:04]} (28... Qf6 $142 29. f4 g5) 29. gxh4 {[%emt 0:09:01][%cal Bg3h4,Bh4g5,Bg5g6][%mdl 32]} Qh5 {[%emt 0:02:34]} 30. Qg3 {[%emt 0:01:21]} f4 {[%emt 0:00:51]} 31. Qg5 {[%emt 0:02:44]} ({Don't take} 31. exf4 $6 Qd5 32. Qg5 Rdf8 33. Qxd5 exd5 $18) 31... Qxg5 {[%emt 0:00:15]} 32. hxg5 {[%emt 0:00:01]} fxe3 {[%emt 0:01:36]} 33. g6 {[%emt 0:00:46]} ({Resist} 33. Rxe3 $6 Bc8 34. Rb3 Bd7 $18) 33... Rfd7 {[%emt 0:00:53]} 34. Bh3 {[%emt 0:00:45]} Re7 {[%emt 0:01:50] [#]} (34... Re8 35. Rxe3 Rde7) 35. Rxb7 {[%emt 0:00:53] Weighted Error Value: White=0.16 (very precise) /Black=0.38} 1-0

[Event "Austrian Championship 2022"]
[Site "Vienna"]
[Date "2022.08.13"]
[Round "2.15"]
[White "Ivanyk, Igor"]
[Black "Schernthaner, David"]
[Result "0-1"]
[ECO "B92"]
[WhiteElo "2002"]
[BlackElo "2319"]
[Annotator "TA"]
[PlyCount "68"]
[EventDate "2022.08.12"]
[EventType "swiss"]
[EventCountry "AUT"]
[SourceTitle "playchess.com"]
[Source "ChessBase"]
[SourceQuality "1"]
[TimeControl "40/5400+30:1800+30"]

{[%evp 21,68,0,0,0,0,10,0,0,0,-6,0,-33,13,0,0,0,0,0,0,0,0,0,17,0,64,-28,89,90,83,87,82,-45,-54,-40,-40,-40,-47,-41,-52,-41,-54,-30,0,-330,-323,-320,-314,-298,-288]} 1. e4 {[%emt 0:05:07]} c5 {[%emt 0:00:06]} 2. Nf3 {[%emt 0:00:10]} d6 {[%emt 0:00:04]} 3. d4 {[%emt 0:00:07]} cxd4 {[%emt 0:00:05]} 4. Nxd4 {[%emt 0:00:08]} Nf6 {[%emt 0:00:05]} 5. Nc3 {[%emt 0:00:05]} a6 {[%emt 0:00:03]} 6. Be2 {[%emt 0:00:20]} e5 {[%emt 0:00:07]} 7. Nb3 {[%emt 0:00:13]} Be7 {[%emt 0:00:05]} 8. Be3 {[%emt 0:00:08]} Be6 {[%emt 0:00:22]} 9. O-O {[%emt 0:00:29]} O-O {[%emt 0:00:04]} 10. Qd2 {[%emt 0:00:06]} Nbd7 {[%emt 0:00:39]} 11. a4 {[%emt 0:00:22][%cal Ba2a4,Ba4a5][%mdl 32]} Nb6 {[%emt 0:01:00]} 12. a5 {[%emt 0:07:41] B92: Sicilian Najdorf: 6 Be2.} Nc4 {[%emt 0:00:53]} 13. Bxc4 {[%emt 0:00:36]} Bxc4 {[%emt 0:00:05]} 14. Rfd1 {[%emt 0:00:51] The position is equal.} Rc8 {[%emt 0:01:27]} 15. f3 {[%emt 0:02:57]} Qe8 {[%emt 0:16:34] [#]} 16. Na4 $146 {[%emt 0:14:24]} ({Predecessor:} 16. Bg5 h6 17. Bxf6 Bxf6 18. Qxd6 Rc6 19. Qd2 Qc8 20. Nc1 Bg5 21. Qe1 Rd8 22. Nd3 {½-½ (31) Wilhelmi,D (2432)-Schuster,P (2451) GER email 2016}) 16... Nd7 {[%emt 0:13:32]} (16... d5 $15 {is more appropriate.}) 17. Nc1 $11 {[%emt 0:10:21]} f5 {[%emt 0:10:23]} 18. exf5 {[%emt 0:12:35]} Rxf5 {[%emt 0:00:06]} 19. b3 {[%emt 0:00:32]} Be6 {[%emt 0:02:41]} 20. c4 $1 {[%emt 0:04:53]} Qg6 {[%emt 0:01:47]} 21. Kh1 {[%emt 0:10:01]} Rcf8 {[%emt 0:06:24][%cal Oe5e4]} (21... e4 $5 22. fxe4 Rf7 $11) 22. Ne2 {[%emt 0:03:09]} Rh5 {[%emt 0:02:21]} (22... e4 $11) 23. Qd3 {[%emt 0:12:05]} (23. Nac3 $14) 23... Qf7 {[%emt 0:08:52]} (23... Qxd3 $11 24. Rxd3 e4 25. fxe4 Rxa5) 24. Ng3 $16 {[%emt 0:01:06]} Rh4 {[%emt 0:00:50][%cal Oe5e4]} 25. Nc3 {[%emt 0:00:55] Inhibits e4.} Nf6 {[%emt 0:11:23]} 26. Nf5 {[%emt 0:03:46]} (26. Ra2 $16) 26... Bxf5 $15 {[%emt 0:08:40]} 27. Qxf5 {[%emt 0:00:03]} e4 $1 {[%emt 0:00:18]} 28. Nxe4 {[%emt 0:05:04] [#] Threatens to win with Ng5.} g6 {[%emt 0:03:29]} 29. Nxf6+ {[%emt 0:02:20]} Bxf6 {[%emt 0:00:07]} 30. Qd3 {[%emt 0:00:52]} Bxa1 {[%emt 0:00:05]} 31. Rxa1 {[%emt 0:00:05]} Qe6 {[%emt 0:01:31] [#] Hoping for ...Qe5.} 32. Bf2 $2 {[%emt 0:00:36][%mdl 8192]} (32. Bd4 $11 {and White has nothing to worry.}) 32... Qe5 $1 $19 {[%emt 0:01:49][%csl Gh4,LRa1,LRh2][%cal Re5h2] Black has a decisive advantage.} 33. Qd5+ {[%emt 0:00:55]} Qxd5 {[%emt 0:00:20]} 34. cxd5 {[%emt 0:00:01]} Rb4 {[%emt 0:00:17] Weighted Error Value: White=0.45/Black=0.19 (very precise)} 0-1

[Event "Austrian Championship 2022"]
[Site "Vienna"]
[Date "2022.08.13"]
[Round "2.16"]
[White "Stadlinger, Lea"]
[Black "Lerch, Johannes"]
[Result "1/2-1/2"]
[ECO "D00"]
[WhiteElo "1723"]
[BlackElo "2222"]
[Annotator "TA"]
[PlyCount "108"]
[EventDate "2022.08.12"]
[EventType "swiss"]
[EventCountry "AUT"]
[SourceTitle "playchess.com"]
[Source "ChessBase"]
[SourceQuality "1"]
[TimeControl "40/5400+30:1800+30"]

{[%evp 9,108,-17,-8,-19,0,-77,-15,-22,0,-12,0,-29,-39,-49,-35,-35,0,-45,-12,-19,-28,-43,-35,-50,-11,0,4,2,23,23,41,29,40,10,16,0,26,21,39,41,71,58,58,58,66,45,48,29,29,0,33,37,37,0,40,0,0,0,0,0,0,0,0,-8,-8,-35,-8,-8,0,0,0,-14,-8,-8,0,-57,-57,-57,-59,-61,-60,-65,-60,-56,0,0,0,0,0,0,0,0,0,0,0,0,0,0,0,0,0]} 1. d4 {[%emt 0:01:13]} Nf6 {[%emt 0:00:07]} 2. Nc3 {[%emt 0:00:41]} d5 {[%emt 0:00:05]} 3. Bf4 {[%emt 0:00:28]} e6 {[%emt 0:00:18]} 4. e3 {[%emt 0:03:48]} Be7 {[%emt 0:01:59]} 5. Nf3 {[%emt 0:02:09]} O-O {[%emt 0:01:16]} 6. Bd3 {[%emt 0:01:34] D00: 1 d4 d5: Unusual lines.} c5 {[%emt 0:06:35]} 7. Nb5 {[%emt 0:05:42]} (7. dxc5 $11 {remains equal.} Nc6 8. O-O) 7... Na6 {[%emt 0:06:06] [#]} (7... c4 $17 {And now ...Qa5+ would win.} 8. Bxh7+ Nxh7) 8. O-O $146 {[%emt 0:02:12]} ({Predecessor:} 8. Nc3 Nb4 9. Be2 b6 10. Ne5 Bb7 11. O-O Nc6 12. Bf3 Nd7 13. Nxc6 Bxc6 14. e4 dxe4 15. Bxe4 Bxe4 16. Nxe4 cxd4 17. Qxd4 {0-1 (47) Damjanovic,V (2393)-Quintiliano Pinto,R (2469) Chess.com INT 2021}) 8... Bd7 {[%emt 0:04:47] [#] Hoping for ...c4.} (8... c4 $5 9. Be2 Nh5 $11) 9. a4 {[%emt 0:09:28]} Nb4 {[%emt 0:02:52]} 10. Nc3 {[%emt 0:09:52]} Rc8 {[%emt 0:04:13]} 11. dxc5 {[%emt 0:06:14]} Bxc5 {[%emt 0:02:58]} 12. Ne5 {[%emt 0:05:39]} Qe7 {[%emt 0:05:03]} 13. e4 {[%emt 0:05:50]} Nxd3 {[%emt 0:13:14]} (13... Bc6 $5) 14. Qxd3 {[%emt 0:01:17]} Rfd8 {[%emt 0:08:16]} 15. Nxd7 {[%emt 0:07:56]} Rxd7 {[%emt 0:00:19]} 16. e5 {[%emt 0:01:36] [#] Threatens to win with Bg5.} Ne8 {[%emt 0:03:38]} 17. Ne2 {[%emt 0:04:24]} Qd8 {[%emt 0:01:22]} 18. c3 {[%emt 0:05:28]} a6 {[%emt 0:04:35]} 19. Be3 {[%emt 0:02:20]} Bf8 {[%emt 0:00:41]} 20. a5 {[%emt 0:04:22]} Qh4 {[%emt 0:02:16]} 21. Qd4 {[%emt 0:04:58]} Qxd4 {[%emt 0:00:33]} 22. Bxd4 {[%emt 0:00:11]} ({Much weaker is} 22. cxd4 Rdc7 $15) 22... f6 {[%emt 0:08:18]} 23. f4 {[%emt 0:00:30]} f5 {[%emt 0:00:30]} 24. Bb6 {[%emt 0:00:30]} h6 {[%emt 0:00:30]} 25. h4 {[%emt 0:00:30]} g6 {[%emt 0:00:30]} 26. Nd4 {[%emt 0:00:30][%cal Be2d4,Bd4f3,Bf3d4][%mdl 32]} Kf7 {[%emt 0:00:30]} 27. g3 {[%emt 0:00:30] White is more active.} Nc7 {[%emt 0:00:30]} 28. Nf3 {[%emt 0:00:30]} Nb5 {[%emt 0:00:30]} 29. Nd4 {[%emt 0:00:30]} Bc5 {[%emt 0:00:30]} 30. Bxc5 {[%emt 0:00:30]} Rxc5 {[%emt 0:00:30]} 31. Rfd1 {[%emt 0:00:30]} (31. Nb3 $5 {[%cal Rb3c5]} Rc8 32. Ra4 $11) 31... Rdc7 {[%emt 0:00:30]} 32. Kf2 {[%emt 0:00:30]} (32. Nb3 $5 {[%cal Rb3c5]}) 32... Nxd4 {[%emt 0:00:30]} 33. Rxd4 {[%emt 0:00:30][%mdl 4096] Endgame KRR-KRR} Rb5 {[%emt 0:00:30]} 34. Ra2 {[%emt 0:00:30]} Rcc5 {[%emt 0:00:30]} 35. Rda4 {[%emt 0:00:30]} g5 {[%emt 0:00:30]} 36. hxg5 {[%emt 0:00:30]} hxg5 {[%emt 0:00:30]} 37. Kf3 {[%emt 0:00:30]} gxf4 {[%emt 0:00:30]} 38. gxf4 {[%emt 0:00:30]} Rc8 {[%emt 0:00:30]} 39. R4a3 {[%emt 0:00:30]} Rc4 {[%emt 0:00:30]} 40. Ke3 {[%emt 0:00:30]} ({Reject} 40. b4 d4 41. cxd4 Rxd4 $15) 40... Re4+ {[%emt 0:00:30]} 41. Kf3 {[%emt 0:30:30]} d4 {[%emt 0:30:30]} 42. c4 {[%emt 0:00:30] Prevents Rd5.} (42. Ra4 $11) 42... Rb4 $15 {[%emt 0:00:30]} 43. b3 {[%emt 0:00:30]} Re3+ {[%emt 0:00:30]} 44. Kf2 {[%emt 0:00:30]} Rbxb3 {[%emt 0:00:30]} 45. Rxb3 {[%emt 0:00:30]} Rxb3 {[%emt 0:00:30] KR-KR} 46. Rd2 {[%emt 0:00:30]} d3 {[%emt 0:00:30]} (46... Kg6 $1 $15 47. Rxd4 Kh5) 47. Ke3 $11 {[%emt 0:00:30] The position is equal.} Ke7 {[%emt 0:00:30]} 48. Rxd3 {[%emt 0:00:30]} Rxd3+ {[%emt 0:00:30]} 49. Kxd3 {[%emt 0:00:30] KP-KP} Kd7 {[%emt 0:00:30]} 50. c5 {[%emt 0:00:30]} Kc7 {[%emt 0:00:30]} (50... Kc6 $5 51. Kc4 Kd7 $11) 51. Kc3 {[%emt 0:00:30]} Kc6 {[%emt 0:00:30]} 52. Kc4 {[%emt 0:00:30]} Kc7 {[%emt 0:00:30] ( -> ...Kc6)} 53. Kc3 {[%emt 0:00:30]} Kd7 {[%emt 0:00:30]} (53... Kc6 $5 54. Kc4 Kd7 $11) 54. Kd3 {[%emt 0:00:30]} Kc6 {[%emt 0:00:30] Weighted Error Value: White=0.15 (very precise) /Black=0.12 (very precise)} 1/2-1/2

[Event "Austrian Championship 2022"]
[Site "Vienna"]
[Date "2022.08.14"]
[Round "3.1"]
[White "Blohberger, Felix"]
[Black "Menezes, Christoph"]
[Result "1/2-1/2"]
[ECO "E32"]
[WhiteElo "2492"]
[BlackElo "2417"]
[Annotator "TA"]
[PlyCount "60"]
[EventDate "2022.08.12"]
[EventType "swiss"]
[EventCountry "AUT"]
[SourceTitle "playchess.com"]
[Source "ChessBase"]
[SourceQuality "1"]
[TimeControl "40/5400+30:1800+30"]

{[%evp 13,60,0,0,0,0,0,5,0,0,0,0,0,0,0,0,0,0,0,0,0,0,0,0,0,40,0,102,0,0,0,0,0,0,0,0,0,0,0,0,0,0,0,0,0,0,0,0,0,0]} 1. d4 {[%emt 0:00:03]} Nf6 {[%emt 0:03:54]} 2. c4 {[%emt 0:00:07]} e6 {[%emt 0:00:26]} 3. Nc3 {[%emt 0:00:07]} Bb4 {[%emt 0:00:38]} 4. Qc2 {[%emt 0:00:08]} O-O {[%emt 0:01:30]} 5. e4 {[%emt 0:00:05]} d5 {[%emt 0:01:14]} 6. e5 {[%emt 0:00:06]} Ne4 {[%emt 0:00:03]} 7. Bd3 {[%emt 0:00:05]} c5 {[%emt 0:01:01]} 8. Nf3 {[%emt 0:00:05] E32: Nimzo-Indian: Classical (4 Qc2): 4...0-0.} cxd4 {[%emt 0:01:46]} 9. Nxd4 {[%emt 0:00:07]} Nd7 {[%emt 0:00:21]} 10. Bf4 {[%emt 0:00:08]} Qh4 {[%emt 0:00:42]} 11. g3 {[%emt 0:00:05]} Qh5 {[%emt 0:00:52]} 12. O-O {[%emt 0:00:09]} Bxc3 {[%emt 0:07:17]} 13. bxc3 {[%emt 0:00:07]} g5 {[%emt 0:00:18]} (13... Nxe5 14. Be2 Ng4 15. Bxg4 Qxg4 16. f3 $16) 14. cxd5 {[%emt 0:00:20]} exd5 {[%emt 0:02:24]} 15. Be3 {[%emt 0:00:10] Strongly threatening f3.} Nxe5 {[%emt 0:00:40]} 16. f3 {[%emt 0:00:08] Against Bg4} ({But not} 16. Bxe4 dxe4 17. Qxe4 Re8 $15) 16... Nc5 {[%emt 0:02:50]} 17. Bf5 {[%emt 0:01:41]} Ne6 $1 {[%emt 0:00:22][%mdl 4] is now more promising than 17...f6.} 18. Rae1 {[%emt 0:00:27] [#]} Nc4 $146 {[%emt 0:03:53]} ({Predecessor:} 18... Nxd4 19. Bxd4 Nc6 20. Bf6 Qh6 21. Bxc8 Raxc8 22. Qf5 Qg6 23. Qxg5 Qxg5 24. Bxg5 f6 {½-½ (66) Vidit,S (2723)-Ding,L (2806) chess24.com INT 2022}) 19. Bc1 {[%emt 0:11:04][%cal Rd4e6] This bishop pair is nice.} Bd7 {[%emt 0:31:14]} (19... Nxd4 $11 {keeps the balance.} 20. cxd4 Nd6) 20. h4 {[%emt 0:23:50]} (20. Nxe6 $16 fxe6 21. Rxe6) 20... Nxd4 $11 {[%emt 0:09:54] The position is equal.} (20... gxh4 $2 21. g4 Nxd4 22. Qd1 Nxf5 23. gxh5 $18) 21. cxd4 {[%emt 0:00:17]} Bxf5 {[%emt 0:00:15]} 22. Qxf5 {[%emt 0:00:08]} Qg6 {[%emt 0:00:22]} 23. Qxd5 {[%emt 0:05:49]} gxh4 {[%emt 0:00:28]} 24. g4 {[%emt 0:02:57]} Nb6 {[%emt 0:02:11]} 25. Qxb7 {[%emt 0:05:22]} Qd6 {[%emt 0:02:26]} 26. Qe7 {[%emt 0:07:57] Inhibits Rae8. Active counter play!} Qg3+ {[%emt 0:05:00]} ({Don't do} 26... Qxd4+ 27. Kg2 Qd8 28. Bg5 Qxe7 29. Bxe7 $14) 27. Kh1 {[%emt 0:01:16] [#] Qg5+ is the strong threat. Really sharp!} Qh3+ {[%emt 0:00:23]} 28. Kg1 {[%emt 0:00:06]} Qg3+ {[%emt 0:00:13]} 29. Kh1 {[%emt 0:00:09] Hoping for Qg5+.} Qh3+ {[%emt 0:00:04]} 30. Kg1 {[%emt 0:00:04]} Qg3+ {[%emt 0:00:05] Weighted Error Value: White=0.09 (flawless) /Black=0.08 (flawless)} 1/2-1/2

[Event "Austrian Championship 2022"]
[Site "Vienna"]
[Date "2022.08.14"]
[Round "3.1"]
[White "Kersten, Julian"]
[Black "Jethan, Martin"]
[Result "1-0"]
[ECO "B12"]
[WhiteElo "1999"]
[BlackElo "2103"]
[Annotator "NA RC"]
[PlyCount "51"]
[EventDate "2022.08.12"]
[EventType "swiss"]
[EventCountry "AUT"]
[SourceTitle "playchess.com"]
[Source "ChessBase"]
[SourceQuality "1"]
[TimeControl "40/5400+30:1800+30"]

1. e4 {[%emt 1:31:00]} c6 {[%emt 0:00:35]} 2. d4 {[%emt 0:00:30]} d5 {[%emt 0:00:09]} 3. e5 {[%emt 0:00:00]} Bf5 {[%emt 0:00:08]} 4. h4 {[%emt 0:00:00]} h5 {[%emt 0:00:09]} 5. Bd3 {[%emt 0:00:00]} Bxd3 {[%emt 0:00:55]} 6. Qxd3 {[%emt 0:00:00]} e6 {[%emt 0:00:08]} 7. Bg5 {[%emt 0:00:00]} Qb6 {[%emt 0:01:36]} 8. Nd2 {[%emt 0:00:00]} Ne7 {[%emt 0:06:41]} 9. Ngf3 {[%emt 0:00:00]} Nf5 {[%emt 0:03:31]} 10. O-O {[%emt 0:00:00]} c5 {[%emt 0:01:54]} 11. c4 {[%emt 0:00:00]} Qa6 {[%emt 0:03:04]} 12. Qc2 {[%emt 0:00:00]} Qc6 {[%emt 0:06:59]} 13. cxd5 {[%emt 0:00:00]} Qxd5 {[%emt 0:00:12]} 14. dxc5 {[%emt 0:00:00]} Qxc5 {[%emt 0:03:39]} 15. Qe4 {[%emt 0:00:00]} Nc6 {[%emt 0:06:59]} 16. Rac1 {[%emt 0:00:00]} Qd5 {[%emt 0:08:34]} 17. Qa4 {[%emt 0:00:00]} Be7 {[%emt 0:06:02]} 18. Bxe7 {[%emt 0:00:00]} Nfxe7 {[%emt 0:01:58]} 19. Rfd1 {[%emt 0:00:00]} Qa5 {[%emt 0:11:31]} 20. Qf4 {[%emt 0:00:00]} Ng6 {[%emt 0:02:58]} 21. Qg3 {[%emt 0:00:00]} Ncxe5 {[%emt 0:04:51]} 22. Nxe5 {[%emt 0:00:00]} Qxe5 {[%emt 0:00:32]} 23. Qa3 {[%emt 0:00:00]} Rd8 {[%emt 0:08:25]} 24. Nc4 {[%emt 0:00:00]} Rxd1+ {[%emt 0:04:05]} 25. Rxd1 {[%emt 0:00:00]} Qe2 {[%emt 0:02:46]} 26. Qd6 {[%emt 0:00:00]} 1-0

[Event "Austrian Championship 2022"]
[Site "Vienna"]
[Date "2022.08.14"]
[Round "3.2"]
[White "Sadilek, Peter"]
[Black "Horvath, Dominik"]
[Result "1/2-1/2"]
[ECO "B50"]
[WhiteElo "2330"]
[BlackElo "2488"]
[Annotator "TA"]
[PlyCount "69"]
[EventDate "2022.08.12"]
[EventType "swiss"]
[EventCountry "AUT"]
[SourceTitle "playchess.com"]
[Source "ChessBase"]
[SourceQuality "1"]
[TimeControl "40/5400+30:1800+30"]

{[%evp 10,69,8,-8,26,17,14,-6,31,24,26,15,36,19,21,37,71,45,53,52,39,51,110,97,118,0,0,0,0,0,0,-27,0,-8,-16,-12,-20,-14,-11,-38,-32,-40,0,0,72,28,29,0,0,0,0,0,0,0,0,0,0,0,0,0,0,0]} 1. Nf3 {[%emt 0:06:14]} d6 {[%emt 0:02:18]} 2. e4 {[%emt 0:04:14]} Nf6 {[%emt 0:00:41]} 3. Nc3 {[%emt 0:00:31]} c5 {[%emt 0:00:05]} 4. e5 {[%emt 0:01:07]} dxe5 {[%emt 0:00:06]} 5. Nxe5 {[%emt 0:00:04]} a6 {[%emt 0:07:48]} 6. a4 {[%emt 0:03:08]} g6 {[%emt 0:06:31] B50: Sicilian: 2...d6, Miscellaneous.} 7. Bc4 {[%emt 0:06:06][%csl Ge5][%cal Rc4f7]} e6 $1 {[%emt 0:00:04] [#]} 8. Qf3 $146 {[%emt 0:02:16]} ({Predecessor:} 8. d3 Bg7 9. O-O O-O 10. Qf3 Nfd7 11. Nxd7 Nxd7 12. Bf4 Ne5 13. Qe3 Nxc4 14. dxc4 {0-1 (59) Kalashian,D (2398)-Bok,B (2624) Chess.com INT 2021}) 8... Nbd7 {[%emt 0:03:57]} 9. Nxd7 {[%emt 0:01:12]} Nxd7 {[%emt 0:00:19]} 10. Qg3 {[%emt 0:07:04] Against Ne5} Bg7 {[%emt 0:00:14]} 11. d3 {[%emt 0:01:47]} O-O {[%emt 0:00:06]} 12. O-O {[%emt 0:02:21]} Ne5 {[%emt 1:14:21]} 13. Be3 {[%emt 0:10:39]} (13. Bg5 $5 {[%cal Rg5d8]} Qa5 14. Ne4 $14) 13... b6 {[%emt 0:00:00]} 14. Bf4 {[%emt 0:03:09]} Nxc4 {[%emt 0:00:00]} 15. dxc4 {[%emt 0:00:10]} Qd4 {[%emt 0:00:00] [#]} (15... Qf6 $14) 16. Bd6 $1 $16 {[%emt 0:10:45] White is more active.} Re8 {[%emt 0:00:00] [#]} 17. Rad1 {[%emt 0:21:53]} ({White should play} 17. a5 $1 $16) 17... Qxc4 $11 {[%emt 0:00:00]} 18. Be5 {[%emt 0:01:58]} Bxe5 {[%emt 0:00:00]} 19. Qxe5 {[%emt 0:00:32]} Bb7 {[%emt 0:00:00] Against Ne4} 20. h3 {[%emt 0:09:37]} Qh4 {[%emt 0:00:00]} 21. Rd7 $36 {[%emt 0:00:10][%mdl 2048] White is pushing.} Bc6 {[%emt 0:00:00][%csl LRa4,LRd7]} 22. Rc7 {[%emt 0:01:32]} Rac8 {[%emt 0:00:00]} 23. Rd1 $1 {[%emt 0:01:45] Inhibits Qd4.} Red8 {[%emt 0:00:00]} 24. Rxc8 {[%emt 0:02:05] Dancing on a razor blade.} Rxc8 {[%emt 0:00:00]} 25. Rd6 $1 {[%emt 0:00:34]} Qh5 {[%emt 0:00:00]} ({Don't take} 25... Bxa4 26. Ne4 $16) 26. Qf6 {[%emt 0:01:31][%cal Od6e6] Hoping for Rxe6!} b5 {[%emt 0:00:00] [#]} (26... Qh6 $11 {keeps the balance.}) 27. Rxe6 $1 {[%emt 0:00:57]} b4 {[%emt 0:01:46]} (27... fxe6 $2 28. Qxe6+ Kg7 29. Qxc8 $18) 28. Rxc6 {[%emt 0:00:28]} (28. Re5 {seems wilder.} Qh6 29. Ne2 Qf8 30. Nf4) 28... Rxc6 {[%emt 0:00:04] The position is equal.} 29. Qxc6 {[%emt 0:00:04]} bxc3 {[%emt 0:00:02]} 30. bxc3 {[%emt 0:00:29] KQ-KQ} Qd1+ {[%emt 0:00:42]} 31. Kh2 {[%emt 0:00:03]} Qxc2 {[%emt 0:00:02]} 32. Qe8+ {[%emt 0:01:16]} Kg7 {[%emt 0:00:04]} 33. Qe5+ {[%emt 0:00:04]} Kg8 {[%emt 0:00:04]} 34. Qe8+ {[%emt 0:00:31]} Kg7 {[%emt 0:00:04]} 35. Qe5+ {[%emt 0:00:03] Weighted Error Value: White=0.12 (very precise) /Black=0.16 (very precise)} 1/2-1/2

[Event "Austrian Championship 2022"]
[Site "Vienna"]
[Date "2022.08.14"]
[Round "3.2"]
[White "Mayrhuber, Nikola"]
[Black "Weichhart, Daniel"]
[Result "1-0"]
[ECO "D78"]
[WhiteElo "2141"]
[BlackElo "1965"]
[Annotator "NA RC"]
[PlyCount "65"]
[EventDate "2022.08.12"]
[EventType "swiss"]
[EventCountry "AUT"]
[SourceTitle "playchess.com"]
[Source "ChessBase"]
[SourceQuality "1"]
[TimeControl "40/5400+30:1800+30"]

1. d4 {[%emt 0:04:58]} d5 {[%emt 0:00:06]} 2. c4 {[%emt 0:00:04]} c6 {[%emt 0:00:07]} 3. Nf3 {[%emt 0:00:10]} Nf6 {[%emt 0:00:05]} 4. Nc3 {[%emt 0:00:25]} dxc4 {[%emt 0:00:08]} 5. g3 {[%emt 0:00:09]} g6 $11 {[%emt 0:00:12]} 6. Bg2 {[%emt 0:00:27]} Bg7 {[%emt 0:00:06]} 7. O-O {[%emt 0:00:05]} O-O {[%emt 0:00:05]} 8. e4 {[%emt 0:00:40]} b5 {[%emt 0:00:22]} 9. Qe2 {[%emt 0:00:20]} a5 {[%emt 0:00:06]} 10. Rd1 {[%emt 0:06:10]} Nbd7 {[%emt 0:00:15]} 11. d5 {[%emt 0:09:52]} cxd5 {[%emt 0:01:40]} 12. e5 {[%emt 0:01:15]} b4 {[%emt 0:00:05]} 13. exf6 {[%emt 0:04:57]} Nxf6 {[%emt 0:00:56]} 14. Nb5 {[%emt 0:10:05]} Ba6 {[%emt 0:01:51]} 15. a4 {[%emt 0:12:18]} Re8 {[%emt 0:04:47]} 16. Ne5 {[%emt 0:02:17]} Bxb5 {[%emt 0:18:19]} 17. axb5 {[%emt 0:01:02]} Qb6 {[%emt 0:02:23]} 18. Rxd5 {[%emt 0:14:05]} Nxd5 {[%emt 0:07:27]} 19. Bxd5 {[%emt 0:00:07]} e6 {[%emt 0:00:17]} 20. Bc6 {[%emt 0:04:08]} c3 {[%emt 0:03:47]} 21. bxc3 {[%emt 0:01:58]} Qc7 {[%emt 0:03:49]} 22. Ng4 {[%emt 0:06:53]} Bxc3 {[%emt 0:05:51]} 23. Bb2 {[%emt 0:00:14]} Red8 {[%emt 0:00:28]} 24. Bxc3 {[%emt 0:05:23]} bxc3 {[%emt 0:00:12]} 25. Qc4 {[%emt 0:00:12]} Rac8 {[%emt 0:01:40]} 26. Qxc3 {[%emt 0:01:01]} Qd6 {[%emt 0:02:00]} 27. Nf6+ {[%emt 0:03:27]} Kh8 {[%emt 0:00:30]} 28. Rxa5 {[%emt 0:04:27]} e5 {[%emt 0:01:04]} 29. Qf3 {[%emt 0:01:31]} Qd2 {[%emt 0:03:12]} 30. Ra7 {[%emt 0:01:26]} Kg7 {[%emt 0:00:58]} 31. Rxf7+ {[%emt 0:03:12]} Kh6 {[%emt 0:00:35]} 32. Rxh7+ {[%emt 0:00:13]} Kg5 {[%emt 0:00:06]} 33. h4# {[%emt 0:00:11]} 1-0